Cogmind - Beta 12 @@@ ROGUE MODE // 2023.11.22 @ 00:04:18 Player: Spro Result: Self-destructed Performance ------------- Evolutions (2) 1000 Regions Visited (5) 1000 Robots Destroyed (25) 125 Value Destroyed (539) 539 Prototype IDs (0) 0 Alien Tech Used (0) 0 Bonus (-46) -46 TOTAL SCORE: 2618 Bonus ------- Friendly Fire -46 Cogmind --------- Core Integrity 351/550 Matter 486/500 Energy 250/250 System Corruption 0% Temperature Cool (0) Movement Treading (160) Location -8/Materials Parts ------- > --- POWER (1) -------- Ion Engine > --- PROPULSION (3) --- Light Treads Light Treads Light Treads > --- UTILITY (5) ------ Improved Heat Sink High-capacity Storage Unit High-capacity Matter Pod > --- WEAPON (2) ------- EM Pulse Gun Light Assault Rifle > --- INVENTORY (20) --- Light Ion Engine Light Treads Light Treads Light Treads Light Treads Grenade Launcher Rocket Launcher Peak State ------------ > --- POWER ------------ Ion Engine > --- PROPULSION ------- Light Treads Light Treads Light Treads > --- UTILITY ---------- High-capacity Storage Unit Compact Battery Light Armor Plating > --- WEAPON ----------- Assault Rifle Light Assault Rifle > --- INVENTORY -------- Ion Engine Light Ion Engine Light Treads Light Treads Light Treads Light Treads Light Treads Light Treads High-capacity Matter Pod Light Armor Plating EM Pulse Gun Light Assault Rifle Grenade Launcher Rocket Launcher [Rating: 12] Favorites ----------- Power Ion Engine Engine Ion Engine Propulsion Light Treads Treads Light Treads Leg Aluminum Leg Utility High-capacity Storage Unit Device Seismic Detector Storage High-capacity Storage Unit Processor Visual Processing Unit Protection Light Armor Plating Weapon Assault Rifle Energy Gun EM Pulse Gun Ballistic Gun Assault Rifle Launcher Grenade Launcher Build | -11 -10 -10 -10 -9 -8 ------- Run | Jun Mat Min Exi Min Mat Slots Evolved 4 | . . . . . 4 Power . | . . . . . . Propulsion 1 | . . . . . 1 Utility 3 | . . . . . 3 Weapon . | . . . . . . Parts Attached 40 | 7 10 . . 11 12 Power 4 | 1 1 . . 1 1 Engine 4 | 1 1 . . 1 1 Core . | . . . . . . Reactor . | . . . . . . Propulsion 11 | 2 5 . . 1 3 Treads 9 | . 5 . . 1 3 Leg 2 | 2 . . . . . Wheel . | . . . . . . Hover . | . . . . . . Flight . | . . . . . . Utility 9 | 2 2 . . 1 4 Device 2 | 1 . . . . 1 Storage 4 | 1 1 . . . 2 Processor 1 | . 1 . . . . Hackware . | . . . . . . Protection 2 | . . . . 1 1 Artifact . | . . . . . . Weapon 16 | 2 2 . . 8 4 Energy Gun 4 | . 1 . . 1 2 Energy Cannon . | . . . . . . Ballistic Gun 11 | 2 1 . . 6 2 Ballistic Cannon . | . . . . . . Launcher 1 | . . . . 1 . Special Weapon . | . . . . . . Impact Weapon . | . . . . . . Slashing Weapon . | . . . . . . Piercing Weapon . | . . . . . . Special Melee Weapon . | . . . . . . Unidentified Prototypes . | . . . . . . Parts Lost 14 | . 1 . . 4 9 Power 2 | . . . . 1 1 Propulsion 3 | . . . . 1 2 Utility 3 | . . . . . 3 Weapon 6 | . 1 . . 2 3 Highest Loss Streak 6 | . 1 . . 2 6 To Critical Strikes . | . . . . . . Average Slot Usage (%) 98 | . 99 100 100 99 74 Engine 13 | . 14 14 14 14 6 Treads 27 | . 24 28 28 28 26 Device 1 | . 3 . . . 3 Storage 14 | . 14 14 14 14 17 Processor 11 | . 10 14 14 9 . Protection 1 | . . . . 4 4 Ballistic Gun 26 | . 27 28 28 24 13 Naked Turns . | . . . . . . Heaviest Build 55 | 13 50 48 48 53 55 Greatest Support 60 | 20 40 40 40 40 60 Greatest Overweight (x) 2 | 2 1 1 1 1 . Average Overweight (x) . | . . 1 1 1 . Largest Inventory Capacity 20 | 8 20 20 20 20 20 Average Capacity 19 | 7 18 20 20 20 20 Most Carried 20 | 6 16 16 17 20 17 Average Carried 14 | 5 10 16 16 17 10 Final Capacity 20 | 8 20 20 20 20 20 Final Carried 18 | 6 16 16 17 18 7 Class Distribution -------------------- 91% | Mutant 8% | Scavenger-Mutant Dominant Class ---------------- Mutant | -10/Materials Mutant | -10/Mines Mutant | -10/Exiles Mutant | -9/Mines Mutant | -8/Materials Resources | -11 -10 -10 -10 -9 -8 ----------- Run | Jun Mat Min Exi Min Mat Matter Collected 991 | 294 362 . 2 142 191 Remotely . | . . . . . . Salvage Created 838 | 131 473 . . 36 198 Parts 39 | 7 25 . . 4 3 Haulers Intercepted 2 | . 2 . . . . Recyclers Shooed 1 | . 1 . . . . Parts Field Recycled . | . . . . . . Retrieved Matter . | . . . . . . Parts Self-Destructed . | . . . . . . Prevented . | . . . . . . Kills | -11 -10 -10 -10 -9 -8 ------- Run | Jun Mat Min Exi Min Mat Combat Hostiles Destroyed 16 | . 10 . . 2 4 Guns 14 | . 8 . . 2 4 AOE 2 | . 2 . . . . Classes Destroyed 7 | 2 5 . . . . Tunneler 3 | 2 . . . 1 . Hauler 2 | . 2 . . . . Recycler 1 | 1 . . . . . Operator 2 | . 2 . . . . Watcher 1 | . 1 . . . . Swarmer 5 | . 3 . . 2 . Grunt 11 | . 7 . . . 4 Best Kill Streak 4 | 2 4 . . 2 2 Combat Bots Only 4 | . 4 . . 2 2 Max Kills in Single Turn 2 | 1 2 . . 1 1 Gunslinging . | . . . . . . Exploded 2 | . 2 . . . . Melee . | . . . . . . Uniques/NPCs Destroyed . | . . . . . . Combat | -11 -10 -10 -10 -9 -8 -------- Run | Jun Mat Min Exi Min Mat Damage Taken 2324 | . 501 . . 723 1100 Core 414 | . 44 . . 171 199 Absorbed by Shields . | . . . . . . Regen/Repaired (Parts) 77 | . 77 . . . . Core Remaining (%) 57 | 100 . . . 14 . Volleys Fired 116 | 4 51 . . 12 49 Largest 2 | 2 2 . . 2 2 Hottest 85 | 40 60 . . 60 85 Shots Fired 223 | 8 101 . . 20 94 Gun 223 | 8 101 . . 20 94 Cannon . | . . . . . . Launcher . | . . . . . . Special . | . . . . . . Kinetic 197 | 8 97 . . 18 74 Thermal 7 | . . . . . 7 Explosive . | . . . . . . Electromagnetic 19 | . 4 . . 2 13 Robot Hit Streak 13 | 2 13 . . 4 11 Robot Miss Streak 3 | 1 3 . . 3 3 Penetration Max . | . . . . . . Secondary Targets 3 | . 2 . . . 1 Max Gunslinging Chain 1 | . 1 . . . 1 Shots Hit Robots 142 | 4 64 . . 9 65 Core Hits 51 | 4 24 . . 4 19 Critical Kills . | . . . . . . Critical Parts Destroyed 4 | . 1 . . . 3 Critical Strikes 6 | . 2 . . . 4 Burn 1 | . . . . . 1 Destroy 4 | . 1 . . . 3 Corrupt 1 | . 1 . . . . Melee Attacks . | . . . . . . Impact . | . . . . . . Slashing . | . . . . . . Piercing . | . . . . . . Sneak Attacks . | . . . . . . Combat Hostiles . | . . . . . . Follow-up Attacks . | . . . . . . Damage Inflicted 1716 | 66 842 . . 107 701 Guns 1630 | 66 767 . . 106 691 Cannons . | . . . . . . Explosions 75 | . 75 . . . . Melee . | . . . . . . Ramming 11 | . . . . 1 10 Kinetic 1415 | 66 733 . . 86 530 Thermal 131 | . 75 . . . 56 Explosive . | . . . . . . Electromagnetic 159 | . 34 . . 20 105 Impact . | . . . . . . Slashing . | . . . . . . Piercing . | . . . . . . Highest Corruption 9 | . . . . 9 . Average Corruption 9 | . . . . 9 . Corruption Purged . | . . . . . . Corruption Blocked . | . . . . . . Effects 7 | . . . . 7 . Message Errors 1 | . . . . 1 . Matter Fused 2 | . . . . 2 . Heat Flow Errors 1 | . . . . 1 . Data Loss (minor) 1 | . . . . 1 . Data Loss (major) 1 | . . . . 1 . Misfires 1 | . . . . 1 . Overload Shots . | . . . . . . Overflow Damage . | . . . . . . Projectiles . | . . . . . . Explosions . | . . . . . . Melee . | . . . . . . Knockbacks . | . . . . . . Impact . | . . . . . . Kinetic . | . . . . . . Secondary . | . . . . . . Self-Inflicted Damage 38 | . 38 . . . . Shots 1 | . 1 . . . . Rammed 2 | . . . . . 2 Targets Rammed 3 | . . . . 1 2 Kicked . | . . . . . . Crushed 1 | . . . . 1 . Highest Temperature 168 | . 12 . . 168 30 Average Temperature 21 | . 6 . . 68 11 Received Heat Transfer 777 | . 192 . . . 585 Siege Activations . | . . . . . . Robots Corrupted . | . . . . . . Combat Hostiles . | . . . . . . Parts Fried 1 | . . . . . 1 Impact Corruptions . | . . . . . . Robots Melted . | . . . . . . Combat Hostiles . | . . . . . . Parts Melted . | . . . . . . Heat Transferred 222 | . . . . . 222 Parts Sabotaged . | . . . . . . Parts Stolen . | . . . . . . Parts Stripped . | . . . . . . Power Chain Reactions 1 | . 1 . . . . Missiles Intercepted . | . . . . . . Alert | -11 -10 -10 -10 -9 -8 ------- Run | Jun Mat Min Exi Min Mat Peak Influence 232 | 15 232 16 . 50 50 Initial 16 | . 9 16 . . 1 Average 46 | 3 90 16 . 19 18 Maximum Alert Level 1 | . 1 . . . . Low Security (%) 97 | 100 93 100 . 100 100 Level 1 2 | . 6 . . . . Level 2 . | . . . . . . Level 3 . | . . . . . . Level 4 . | . . . . . . Level 5 . | . . . . . . High Security . | . . . . . . Max Security . | . . . . . . Squads Dispatched 5 | . 4 . . . 1 Investigation 3 | . 3 . . . . Extermination . | . . . . . . Reinforcement 2 | . 1 . . . 1 Assault . | . . . . . . Garrison . | . . . . . . Intercept . | . . . . . . Searches Triggered . | . . . . . . Construction Impeded . | . . . . . . Haulers Reinforced . | . . . . . . Active Scanning Responses . | . . . . . . Cargo Convoy Interrupts . | . . . . . . Stealth | -11 -10 -10 -10 -9 -8 --------- Run | Jun Mat Min Exi Min Mat Distress Signals 1 | . . . . . 1 Communications Jammed . | . . . . . . Distress Signals . | . . . . . . Times Spotted 33 | . 20 . . 4 9 Peak Tracking Total 5 | . 4 . . 3 5 Tactical Retreats 1 | . 1 . . . . Traps | -11 -10 -10 -10 -9 -8 ------- Run | Jun Mat Min Exi Min Mat Traps Triggered 1 | . 1 . . . . Indirectly . | . . . . . . Trap Hack Attempts . | . . . . . . Triggered . | . . . . . . Disarmed . | . . . . . . Reprogrammed . | . . . . . . Reused . | . . . . . . Traps Extracted . | . . . . . . Installed . | . . . . . . Triggered . | . . . . . . Machines | -11 -10 -10 -10 -9 -8 ---------- Run | Jun Mat Min Exi Min Mat Machines Disabled . | . . . . . . Max in Single Turn . | . . . . . . Machines Repaired . | . . . . . . Machines Sabotaged . | . . . . . . Overloaded Fab Kills . | . . . . . . Hacking | -11 -10 -10 -10 -9 -8 --------- Run | Jun Mat Min Exi Min Mat Machines Accessed 9 | . 5 . 4 . . Terminals 4 | . 4 . . . . Fabricators . | . . . . . . Repair Stations 1 | . 1 . . . . Recycling Units . | . . . . . . Scanalyzers . | . . . . . . Garrison Access . | . . . . . . Total Hacks 17 | . 13 . 4 . . Successful 10 | . 6 . 4 . . Failed 7 | . 7 . . . . Catastrophic 2 | . 2 . . . . Database Lockouts . | . . . . . . Manual 7 | . 7 . . . . Terminals 9 | . 9 . . . . Fabricators . | . . . . . . Repair Stations 4 | . 4 . . . . Recycling Units . | . . . . . . Scanalyzers . | . . . . . . Garrison Access . | . . . . . . Terminal Hacks 6 | . 2 . 4 . . Record 4 | . . . 4 . . Robot Analysis 1 | . 1 . . . . Hauler Manifests 1 | . 1 . . . . Fabricator Hacks . | . . . . . . Repair Station Hacks 3 | . 3 . . . . Scan Component 2 | . 2 . . . . Repair 1 | . 1 . . . . Recycling Unit Hacks . | . . . . . . Scanalyzer . | . . . . . . Garrison Access Hacks . | . . . . . . Unauthorized Hacks 1 | . 1 . . . . Terminals 1 | . 1 . . . . Assimilate 1 | . 1 . . . . Fabricators . | . . . . . . Repair Stations . | . . . . . . Recycling Units . | . . . . . . Scanalyzers . | . . . . . . Garrison Access . | . . . . . . Data Cores Recovered . | . . . . . . Used . | . . . . . . Hacking Detections 3 | . 3 . . . . Full Trace Events 1 | . 1 . . . . Feedback Events . | . . . . . . Feedback Blocked . | . . . . . . Robot Schematics Acquired . | . . . . . . Robots Built . | . . . . . . Authchips . | . . . . . . Time . | . . . . . . Total Robot Build Rating . | . . . . . . Part Schematics Acquired . | . . . . . . Parts Built . | . . . . . . Authchips . | . . . . . . Time . | . . . . . . Total Part Build Rating . | . . . . . . Parts Repaired 1 | . 1 . . . . Time 26 | . 26 . . . . Parts Recycled . | . . . . . . Recycled Matter . | . . . . . . Retrieved Matter . | . . . . . . Retrieved Components . | . . . . . . Parts Scanalyzed . | . . . . . . Part Schematics Acquired . | . . . . . . Parts Damaged . | . . . . . . Bothacking | -11 -10 -10 -10 -9 -8 ------------ Run | Jun Mat Min Exi Min Mat Used RIF Installer . | . . . . . . Robots Hacked . | . . . . . . Non-combat . | . . . . . . Combat . | . . . . . . Robot Hacks Applied . | . . . . . . Relay Couplers Released . | . . . . . . Fabnet Peak Effective % . | . . . . . . Robots Rewired . | . . . . . . Allies Hacked . | . . . . . . Hacks Repelled . | . . . . . . Allies | -11 -10 -10 -10 -9 -8 -------- Run | Jun Mat Min Exi Min Mat Total Allies 1 | . 1 . . . . Largest Group 1 | . 1 . . . . Highest-Rated Group 10 | . 10 . . . . Highest-Rated Ally 10 | . 10 . . . . Total Orders . | . . . . . . Ally Attacks . | . . . . . . Total Damage . | . . . . . . Kills . | . . . . . . Allies Corrupted . | . . . . . . Allies Melted . | . . . . . . Intel | -11 -10 -10 -10 -9 -8 ------- Run | Jun Mat Min Exi Min Mat Robot Analysis Total 1 | . 1 . . . . Derelict Logs Recovered 2 | . . 1 . 1 . Drone Launches . | . . . . . . Drone Recoveries . | . . . . . . Exploration | -11 -10 -10 -10 -9 -8 ------------- Run | Jun Mat Min Exi Min Mat Turns Passed 4418 | 132 1131 324 1607 942 282 Spaces Moved 1674 | 88 420 136 670 310 50 Core 9 | 9 . . . . . Treads 1510 | . 344 136 670 310 50 Legs 155 | 79 76 . . . . Wheels . | . . . . . . Hover . | . . . . . . Flight . | . . . . . . Fastest Speed 50 | 50 120 240 240 240 160 Average Speed 225 | 118 218 240 240 240 160 Slowest Speed 240 | 150 240 240 240 240 160 Overloaded Moves . | . . . . . . Propulsion Burnouts . | . . . . . . Robots Hopped . | . . . . . . Cave-ins Triggered 1 | . . . . 1 . Exploration Rate (%) 40 | 7 70 22 94 44 5 Regions Visited 5 Branch Regions 3 Pre-discovered Areas 1 | . . . . 1 . Known Exits Taken . | . . . . . . Unknown Exits Taken 5 | 1 1 1 1 1 . Scrap Searched . | . . . . . . Spaces Dug . | . . . . . . Terrain Destroyed 3 | . 3 . . . . Melee . | . . . . . . Projectile . | . . . . . . AOE 3 | . 3 . . . . Terrain Rammed . | . . . . . . Walls Destroyed . | . . . . . . Machines Disabled . | . . . . . . Actions | -11 -10 -10 -10 -9 -8 --------- Run | Jun Mat Min Exi Min Mat Total 2100 | 104 535 135 670 490 166 Wait 235 | . 37 . . 149 49 Move 1669 | 87 419 135 669 309 50 Hop . | . . . . . . Pick Up 21 | 6 11 . 1 3 . Fast Attach 16 | 7 3 . . 3 3 Attach 14 | . 1 . . 4 9 Detach 4 | . 1 . . 2 1 Swap 10 | . 6 . . 4 . Drop 12 | . 6 . . 3 3 Fire 116 | 4 51 . . 12 49 Melee . | . . . . . . Ram . | . . . . . . Kick . | . . . . . . Crush 3 | . . . . 1 2 Escape Stasis . | . . . . . . Rewire . | . . . . . . Trap . | . . . . . . Miscellaneous . | . . . . . . Route ------- -11/Junkyard -10/Materials (discovered 3 exits: [*Mat x2] / [*Min]) -10/Mines (discovered 2 exits: [*Mat] / *Exi) -10/Exiles (discovered 2 exits: [*Min x2]) -9/Mines -8/Materials History --------- Turn | Location | Event 13 | -11/Junkyard | Discovered new exit (range 15) 133 | -11/Junkyard | Entered Materials 303 | -10/Materials | Build established: Mutant 465 | -10/Materials | Discovered new exit (range 18) 689 | -10/Materials | Repaired Lgt. Treads 831 | -10/Materials | Discovered new exit (range 17) 1031 | -10/Materials | Discovered new exit (range 7) 1264 | -10/Materials | Entered Mines 1279 | -10/Mines | Discovered new exit (range 16) 1548 | -10/Mines | Deemed a non-threat by the Exiles lab entrance 1550 | -10/Mines | Discovered new exit (range 5) 1588 | -10/Mines | Entered Exiles 1588 | -10/Exiles | Found Exiles lab abandoned 1620 | -10/Exiles | Discovered new exit (range 17) 3174 | -10/Exiles | Discovered new exit (range 10) 3195 | -10/Exiles | Entered Mines 3375 | -9/Mines | Assembled infested the area 3380 | -9/Mines | Assisted by a Guerilla fighting off Assembled 3725 | -9/Mines | Received a Rocket Launcher from a helpful Derelict 3781 | -9/Mines | Joined a pair of Derelicts in attacking an 0b10 outpost 3820 | -9/Mines | Learned location of Storage (-9) 3955 | -9/Mines | Core integrity fell below 50% 3973 | -9/Mines | Crushed by falling debris 3973 | -9/Mines | Core integrity fell below 20% 4110 | -9/Mines | Discovered new exit (range 12) 4137 | -9/Mines | Entered Materials 4137 | -8/Materials | Evolved 4 slots: Propulsion x1, Utility x3 4329 | -8/Materials | Lost 6 parts (1p1n1u3w) 4419 | -8/Materials | Self-destructed Last Messages --------------- 04306_ G-47 Trooper suffers critical hit (Destroy). 04306_ Destroyed Aluminum Leg. 04310_ Acquired 53 matter. 04312_ Acquired 44 matter. 04315_ Acquired Imp. Heat Sink. 04318_ Acquired 30 matter. 04324_ R-06 Scavenger collects Aluminum Leg. 04331_ Acquired 1 matter. 04333_ Lgt. Treads destroyed. 04336_ Destroyed Backup Propulsion I. 04337_ Acquired 1 matter. 04339_ Acquired 10 matter. 04353_ G-47 Trooper suffers critical hit (Destroy). 04353_ Destroyed Lgt. Nuclear Core. 04356_ Destroyed Aluminum Leg. 04359_ G-47 Trooper misfires. 04363_ Imp. Heat Sink fried. 04363_ G-47 Trooper destroyed. 04387_ K-01 Serf collects debris. 04398_ Slammed into K-01 Serf. Map ----- +----------------------------------------------------+ | ?????????????????????????????????????????????????? | | ?????????????????????????????????????????????????? | | ?????????????????????????????????????????????????? | | ?????????????????????????????????????????????????? | | ?????????????????????????????????????????????????? | | ?????????????????????????????????????????????????? | | ?????????????????????????????????????????????????? | | ?????????????????????????????????????????????????? | | ?????????????????????????????????????????????????? | | ?????????????????????????????????????????????????? | | ?????????????????????????????????????????????????? | | ?????????????????????????????????????????????????? | | ?????????????????????????????????????????????????? | | ?????????????????????????????????????????????????? | | ?????????????????????????????????????????????????? | | ?????????????????????????????????????????????????? | | ?????????????????????????????????????????????????? | | ???????????????????###########???????????????????? | | ???????????????????# #???????????????????? | | ???????????????????# #???????????????????? | | ???????????????????# ! #???????????????????? | | ???????????????????# #???????????????????? | | ???????????????????# """ """ #???????????????????? | | ???????????????????# """ """ #???????????????????? | | ???????????????????# """ """ #???????????????????? | | ???????????????????# %@ #???????????????????? | | ???????????????????#####+#####???????????????????? | | ?????????????????????# ############??????????? | | ??????????############ ?????????? | | ???? ?????????? | | ???? ?????????? | | ???????############### ###+#########?????????? | | ?????????????????????## ##??? ????????????????? | | ??????????????????????# #????? ???????????????? | | ??????????????????????# #?????? ??????????????? | | ??????????????????????# #???????"??????????????? | | ??????????????????????# #??????????????????????? | | ??????????????????????# #??????????????????????? | | ??????????????????????# #??????????????????????? | | ??????????????????????#####??????????????????????? | | ?????????????????????????????????????????????????? | | ?????????????????????????????????????????????????? | | ?????????????????????????????????????????????????? | | ?????????????????????????????????????????????????? | | | | | | | | | | | | | +----------------------------------------------------+ Best States ------------- Heat Dissipation 45 Energy Generation 10 Energy Capacity 450 Matter Stores 500 Matter Capacity 500 Sight Range 18 Terrain Scan Density 10 Armor Coverage 150 Evasion (%) 55 Recoil Reduction 3 Item Schematics ----------------- None Robot Schematics ------------------ None Fabricated ------------ Nothing Alien Tech Used ----------------- None Achievements -------------- None Challenges ------------ None Game ------ Seed RefineryEncryptedBlade Manual? 0 Play Time 00:20:50 Cumulative 19.2 hours Start 2023.11.21 @ 23:44:09 End 2023.11.22 @ 00:04:18 Sessions 1 Manual Loads 0 Difficulty Rogue Special Mode None Game No. 23 Rogue 23 Adventurer 0 Explorer 0 Win Type - Total 0 Types 0/0/0/0/0/0/0/0/0 Lore% 20 Gallery% 19 Achievement% 20 Wizard Run 0 Options --------- ASCII 0 Keyboard 0 Movement Numpad Keybinds 0 Fullscreen 1 Font 18/SmallcapsGlow Map View 76x50 Tactical HUD 1 Map Filters NONE Filters NONE Steam 1 RUN: 70efb732-fe75-409d-9a96-1f6f267da4da